fUSD/lending_fUSD_20240212
["ID","MTS","AMOUNT","RATE_DAILY","PERIOD"]
[313776025,1707713446937,-538.77405819,0.00023075,2]
[313776026,1707713446946,-933.99,0.00023075,2]
[313776027,1707713446955,-489.41651131,0.00023075,2]
[313776028,1707713446965,-500.0,0.00023075,2]
[313776029,1707713446975,-500.0,0.00023075,2]
[313776030,1707713446984,-1378.64,0.00023075,2]
[313776031,1707713446993,-500.0,0.00023075,2]
[313776032,1707713447003,-951.99,0.00023075,2]
[313776033,1707713447012,-500.0,0.00023075,2]
[313776034,1707713447021,-500.0,0.00023075,2]
[313776035,1707713447030,-500.0,0.00023075,2]
[313776036,1707713447040,-569.80521723,0.00023075,2]
[313776037,1707713447049,-500.0,0.00023075,2]
[313776038,1707713447058,-1097.9,0.00023075,2]
[313776039,1707713447068,-500.0,0.00023075,2]
[313776040,1707713447294,-505.8631266,0.00023075,2]
[313776041,1707713447303,-500.0,0.00023075,2]
[313776042,1707713447313,-500.0,0.00023075,2]
[313776043,1707713447323,-524.42396563,0.00023075,2]
[313776044,1707713447332,-516.63030336,0.00023075,2]
[313776045,1707713447344,-676.88,0.00023075,2]
[313776046,1707713447353,-500.0,0.00023075,2]
[313776047,1707713447363,-528.42242143,0.00023075,2]
[313776048,1707713447372,-499.23901043,0.00023075,2]
[313776049,1707713447383,-500.0,0.00023075,2]
[313776050,1707713447392,-530.72229561,0.00023075,2]
[313776051,1707713447401,-500.0,0.00023075,2]
[313776052,1707713447411,-514.88950486,0.00023075,2]
[313776053,1707713447420,-500.0,0.00023075,2]
[313776054,1707713447431,-500.0,0.00023075,2]
[313776055,1707713447441,-500.0,0.00023075,2]
[313776056,1707713447450,-500.0,0.00023075,2]
[313776057,1707713447459,-500.0,0.00023075,2]
[313776058,1707713447468,-500.0,0.00023075,2]
[313776059,1707713447478,-500.0,0.00023075,2]
[313776060,1707713447487,-2145.86,0.00023075,2]
[313776061,1707713447496,-500.0,0.00023075,2]
[313776062,1707713447506,-500.0,0.00023075,2]
[313776063,1707713447515,-500.0,0.00023075,2]
[313776064,1707713447524,-515.57017276,0.00023075,2]
[313776065,1707713447534,-500.0,0.00023075,2]
[313776066,1707713447543,-500.0,0.00023075,2]
[313776067,1707713447552,-559.48,0.00023075,2]
[313776068,1707713447561,-500.0,0.00023075,2]
[313776069,1707713447570,-500.0,0.00023075,2]
[313776070,1707713447579,-500.0,0.00023075,2]
[313776071,1707713447589,-518.56979379,0.00023075,2]
[313776072,1707713447598,-500.0,0.00023075,2]
[313776073,1707713447607,-500.0,0.00023075,2]
[313776074,1707713447616,-500.0,0.00023075,2]
[313776075,1707713447625,-775.48,0.00023075,2]
[313776076,1707713447635,-500.0,0.00023075,2]
[313776077,1707713447643,-500.0,0.00023075,2]
[313776078,1707713447652,-500.0,0.00023075,2]
[313776079,1707713447662,-500.0,0.00023075,2]
[313776080,1707713447670,-500.0,0.00023075,2]
[313776081,1707713447679,-500.0,0.00023075,2]
[313776082,1707713447689,-500.0,0.00023075,2]
[313776083,1707713447698,-1189.84,0.00023075,2]
[313776084,1707713447707,-500.0,0.00023075,2]
[313776085,1707713447717,-500.0,0.00023075,2]
[313776086,1707713447727,-500.0,0.00023075,2]
[313776087,1707713447736,-580.01,0.00023075,2]
[313776088,1707713447746,-526.6420238,0.00023075,2]
[313776089,1707713447755,-502.78700479,0.00023075,2]
[313776090,1707713447764,-506.45261277,0.00023075,2]
[313776091,1707713447773,-500.0,0.00023075,2]
[313776092,1707713447782,-500.0,0.00023075,2]
[313776093,1707713447791,-500.0,0.00023075,2]
[313776094,1707713447800,-522.41367167,0.00023075,2]
[313776095,1707713447809,-500.0,0.00023075,2]
[313776096,1707713447819,-766.37,0.00023075,2]
[313776097,1707713447828,-500.0,0.00023075,2]
[313776098,1707713447837,-421.930049,0.00023075,2]
[313776099,1707713447846,-500.0,0.00023075,2]
[313776100,1707713447856,-500.0,0.00023075,2]
[313776101,1707713447865,-500.0,0.00023075,2]
[313776102,1707713447875,-500.0,0.00023075,2]
[313776103,1707713447884,-504.70246801,0.00023075,2]
[313776104,1707713447893,-500.0,0.00023075,2]
[313776105,1707713447903,-500.0,0.00023075,2]
[313776106,1707713447912,-500.0,0.00023075,2]
[313776107,1707713447921,-500.0,0.00023075,2]
[313776108,1707713447930,-550.9322403,0.00023075,2]
[313776109,1707713447939,-500.0,0.00023075,2]
[313776110,1707713447948,-500.0,0.00023075,2]
[313776111,1707713447957,-500.0,0.00023075,2]
[313776112,1707713447966,-500.0,0.00023075,2]
[313776113,1707713447976,-500.0,0.00023075,2]
[313776114,1707713447985,-500.0,0.00023075,2]
[313776115,1707713447995,-1220.82,0.00023075,2]
[313776116,1707713448004,-500.0,0.00023075,2]
[313776117,1707713448014,-500.0,0.00023075,2]
[313776118,1707713448023,-282.18414367,0.00023075,2]
[313776119,1707713448032,-184.59533474,0.00023075,2]
[313776120,1707713448042,-500.0,0.00023075,2]
[313776121,1707713448051,-500.0,0.00023075,2]
[313776122,1707713448061,-500.0,0.00023075,2]
[313776123,1707713448070,-500.0,0.00023075,2]
[313776124,1707713448080,-500.0,0.00023075,2]
[313776125,1707713448089,-517.79022456,0.00023075,2]
[313776126,1707713448099,-500.0,0.00023075,2]
[313776127,1707713448108,-500.0,0.00023075,2]
[313776128,1707713448118,-500.0,0.00023075,2]
[313776129,1707713448128,-511.81087903,0.00023075,2]
[313776130,1707713448138,-500.0,0.00023075,2]
[313776131,1707713448148,-500.0,0.00023075,2]
[313776132,1707713448158,-500.0,0.00023075,2]
[313776133,1707713448167,-500.0,0.00023075,2]
[313776134,1707713448177,-500.0,0.00023075,2]
[313776135,1707713448187,-500.0,0.00023075,2]
[313776136,1707713448196,-805.32,0.00023075,2]
[313776137,1707713448206,-500.0,0.00023075,2]
[313776138,1707713448215,-500.0,0.00023075,2]
[313776139,1707713448224,-500.0,0.00023075,2]
[313776140,1707713448233,-500.0,0.00023075,2]
[313776141,1707713448242,-500.00106451,0.00023075,2]
[313776142,1707713448251,-500.0,0.00023075,2]
[313776143,1707713448263,-500.0,0.00023075,2]
[313776144,1707713448272,-1192.74,0.00023075,2]
[313776145,1707713448281,-500.0,0.00023075,2]
[313776146,1707713448291,-500.0,0.00023075,2]
[313776147,1707713448300,-500.0,0.00023075,2]
[313776148,1707713448309,-500.0,0.00023075,2]
[313776149,1707713448319,-500.0,0.00023075,2]
[313776150,1707713448332,-500.0,0.00023075,2]
[313776151,1707713448341,-500.0,0.00023075,2]
[313776152,1707713448350,-500.0,0.00023075,2]
[313776153,1707713448359,-1288.61,0.00023075,2]
[313776154,1707713448370,-500.0,0.00023075,2]
[313776155,1707713448379,-500.0,0.00023075,2]
[313776156,1707713448388,-500.0,0.00023075,2]
[313776157,1707713448397,-504.32696988,0.00023075,2]
[313776158,1707713448406,-543.98841725,0.00023075,2]
[313776159,1707713448416,-500.0,0.00023075,2]
[313776160,1707713448425,-500.0,0.00023075,2]
[313776161,1707713448434,-506.46004541,0.00023075,2]
[313776162,1707713448443,-500.0,0.00023075,2]
[313776163,1707713448453,-507.31649706,0.00023075,2]
[313776164,1707713448462,-500.0,0.00023075,2]
[313776165,1707713448471,-500.0,0.00023075,2]
[313776166,1707713448480,-500.0,0.00023075,2]
[313776167,1707713448489,-500.0,0.00023075,2]
[313776168,1707713448498,-500.0,0.00023075,2]
[313776169,1707713448507,-2367.5,0.00023075,2]
[313776170,1707713448516,-500.0,0.00023075,2]
[313776171,1707713448525,-500.0,0.00023075,2]
[313776172,1707713448534,-500.0,0.00023075,2]
[313776173,1707713448543,-625.50191148,0.00023075,2]
[313776174,1707713448552,-526.54,0.00023075,2]
[313776175,1707713448562,-500.0,0.00023075,2]
[313776176,1707713448570,-615.53,0.00023075,2]
[313776177,1707713448580,-504.82,0.00023075,2]
[313776178,1707713448589,-500.0,0.00023075,2]
[313776179,1707713448598,-500.0,0.00023075,2]
[313776180,1707713448607,-500.0,0.00023075,2]
[313776181,1707713448616,-500.0,0.00023075,2]
[313776182,1707713448625,-500.0,0.00023075,2]
[313776183,1707713448634,-500.0,0.00023075,2]
[313776184,1707713448644,-572.3,0.00023075,2]
[313776185,1707713448653,-500.0,0.00023075,2]
[313776186,1707713448663,-500.0,0.00023075,2]
[313776187,1707713448672,-214.2,0.00023075,2]
[313776188,1707713448682,-500.0,0.00023075,2]
[313776189,1707713448693,-500.0,0.00023075,2]
[313776190,1707713448702,-1139.96,0.00023075,2]
[313776191,1707713448713,-500.0,0.00023075,2]
[313776192,1707713448723,-741.92,0.00023075,2]
[313776193,1707713448732,-499.63907954,0.00023075,2]
[313776194,1707713448741,-500.0,0.00023075,2]
[313776195,1707713448751,-500.0,0.00023075,2]
[313776196,1707713448761,-500.0,0.00023075,2]
[313776197,1707713448770,-591.56,0.00023075,2]
[313776198,1707713448779,-500.0,0.00023075,2]
[313776199,1707713448789,-524.7529605,0.00023075,2]
[313776200,1707713448799,-549.53,0.00023075,2]
[313776201,1707713448808,-500.0,0.00023075,2]
[313776202,1707713448818,-500.0,0.00023075,2]
[313776203,1707713448827,-500.0,0.00023075,2]
[313776204,1707713448836,-500.0,0.00023075,2]
[313776205,1707713448846,-520.36924631,0.00023075,2]
[313776206,1707713448855,-635.98,0.00023075,2]
[313776207,1707713448864,-500.0,0.00023075,2]
[313776208,1707713448874,-1092.93,0.00023075,2]
[313776209,1707713448883,-500.0,0.00023075,2]
[313776210,1707713448892,-606.24,0.00023075,2]
[313776211,1707713448902,-676.43,0.00023075,2]
[313776212,1707713448911,-648.09,0.00023075,2]
[313776213,1707713448920,-500.0,0.00023075,2]
[313776214,1707713448929,-1145.11,0.00023075,2]
[313776215,1707713448939,-613.44,0.00023075,2]
[313776216,1707713448948,-614.55,0.00023075,2]
[313776217,1707713448958,-500.0,0.00023075,2]
[313776218,1707713448967,-500.0,0.00023075,2]
[313776219,1707713448977,-581.34,0.00023075,2]
[313776220,1707713448987,-500.0,0.00023075,2]
[313776221,1707713448996,-500.0,0.00023075,2]
[313776222,1707713449006,-336.71090278,0.00023075,2]
[313776223,1707713449015,-500.0,0.00023075,2]
[313776224,1707713449025,-500.0,0.00023075,2]
[313776225,1707713449034,-928.1,0.00023075,2]
[313776226,1707713449043,-532.41104081,0.00023075,2]
[313776227,1707713449052,-529.94116594,0.00023075,2]
[313776228,1707713449062,-718.45,0.00023075,2]
[313776229,1707713449071,-500.0,0.00023075,2]
[313776230,1707713449080,-500.0,0.00023075,2]
[313776231,1707713449089,-505.0,0.00023075,2]
[313776232,1707713449098,-500.0,0.00023075,2]
[313776233,1707713449107,-578.88,0.00023075,2]
[313776234,1707713449117,-1198.05,0.00023075,2]
[313776235,1707713449126,-521.62747127,0.00023075,2]
[313776236,1707713449136,-607.71,0.00023075,2]
[313776237,1707713449145,-655.82,0.00023075,2]
[313776238,1707713449156,-500.0,0.00023075,2]
[313776239,1707713449165,-600.64,0.00023075,2]
[313776240,1707713449174,-998.57,0.00023075,2]
[313776241,1707713449184,-500.0,0.00023075,2]
[313776242,1707713449193,-1363.34,0.00023075,2]
[313776243,1707713449203,-500.0,0.00023075,2]
[313776244,1707713449212,-523.26,0.00023075,2]
[313776245,1707713449222,-500.0,0.00023075,2]
[313776246,1707713449230,-669.33,0.00023075,2]
[313776247,1707713449239,-3307.11330135,0.00023076,2]
[313776248,1707713449249,-348.71943713,0.00023076,2]
[313776249,1707713449258,-500.0,0.00023076,2]
[313776250,1707713449267,-698.92325617,0.00023076,2]
[313776251,1707713449276,-500.0,0.00023076,9]
[313776252,1707713449286,-500.0,0.00023076,2]
[313776253,1707713449295,-500.0,0.00023076,2]
[313776254,1707713449304,-438.80849969,0.00023076,2]
[313776255,1707713449314,-507.33187929,0.00023076,2]
[313776256,1707713449324,-1000.0,0.00023076,2]
[313776257,1707713449335,-500.0,0.00023076,2]
[313776258,1707713449344,-500.0,0.00023076,2]
[313776259,1707713449353,-506.5061883,0.00023076,2]
[313776260,1707713449362,-500.0,0.00023076,2]
[313776261,1707713449372,-500.0,0.00023076,2]
[313776262,1707713449382,-944.11,0.00023076,2]
[313776263,1707713449391,-500.0,0.00023076,2]
[313776264,1707713449401,-592.09,0.00023076,2]
[313776265,1707713449411,-618.93,0.00023076,2]
[313776266,1707713449421,-1048.85,0.00023076,2]
[313776267,1707713449430,-985.45,0.00023076,2]
[313776268,1707713449440,-500.0,0.00023076,2]
[313776269,1707713449449,-500.0,0.00023076,2]
[313776270,1707713449458,-500.0,0.00023076,2]
[313776271,1707713449467,-500.0,0.00023076,2]
[313776272,1707713449477,-500.0,0.00023076,2]
[313776273,1707713449486,-500.0,0.00023076,2]
[313776274,1707713449496,-500.0,0.00023076,2]
[313776275,1707713449505,-500.0,0.00023076,2]
[313776276,1707713449514,-500.0,0.00023076,2]
[313776277,1707713449524,-500.0,0.00023076,2]
[313776278,1707713449533,-649.23570996,0.00023076,2]
[313776279,1707713449543,-500.0,0.00023076,2]
[313776280,1707713449552,-500.0,0.00023076,2]
[313776281,1707713449562,-500.0,0.00023076,2]
[313776282,1707713449571,-500.0,0.00023076,2]
[313776283,1707713449580,-500.0,0.00023076,2]
[313776284,1707713449589,-500.0,0.00023076,2]
[313776285,1707713449598,-371.60474219,0.00023076,2]
[313776286,1707713449607,-500.0,0.00023076,2]
[313776287,1707713449616,-846.06,0.00023076,2]
[313776288,1707713449626,-500.0,0.00023076,2]
[313776289,1707713449634,-166.7899118,0.00023077,4]
[313776290,1707713449643,-188.12,0.000231,2]
[313776291,1707713449652,-15892.72,0.000231,2]
[313776292,1707713449662,-830.8892332,0.00023162,2]
[313776293,1707713449672,-269.7208268,0.00023162,2]
[313776294,1707713449681,-336.6597908,0.00023162,2]
[313776295,1707713449690,-2036.9481837,0.00023162,2]
[313776296,1707713449700,-34547.5740292,0.00023162,2]
[313776297,1707713449709,-490.44530147,0.00023164,2]
[313776298,1707713449718,-424.15134428,0.00023167,2]
[313776299,1707713449727,-11113.29311289,0.00023168,2]
[313776300,1707713449736,-500.0,0.00023169,2]
[313776301,1707713449746,-1653.89,0.00023169,2]
[313776302,1707713449756,-307.6757176,0.0002317,3]
[313776303,1707713449765,-318396.58800904,0.00023171,2]
[313776304,1707713449786,-1260.75507121,0.00023171,2]
[313776305,1707713449798,-537.43898083,0.00023171,2]
[313776306,1707713449814,-3634.78123467,0.00023171,2]
[313776307,1707713450839,-4812.5,0.00023171,2]
[313776308,1707713450882,-44534.97722417,0.00023171,2]
[313776309,1707713461106,55555.0,0.00022974,2]
[313776310,1707713466407,50000.0,0.000228,2]
[313776311,1707713469392,1000.0,0.00023,2]
[313776312,1707713469443,995823.4066585,0.00023,2]
[313776313,1707713485720,153.04,0.00022384,2]
[313776314,1707713487793,451.86,0.00022209,2]
[313776315,1707713595944,150.0,0.00022063,2]
[313776316,1707713613145,334.42,0.00022053,2]
[313776317,1707713671156,152.55,0.00020072,2]
[313776318,1707713677265,480.60284299,0.000222,2]
[313776319,1707713690152,176.59,0.00021973,2]
[313776320,1707713752677,250.0,0.00021937,2]
[313776321,1707713811778,2000.0,0.0002194,2]
[313776322,1707713897984,173.94,0.00021906,2]
[313776323,1707713901346,250.0,0.0002192,2]
[313776324,1707713951511,182.35,0.00021895,2]
[313776325,1707714007435,638.51,0.00021859,2]
[313776326,1707714011174,153.04,0.00022053,2]
[313776327,1707714011262,153.04,0.00022283,2]
[313776328,1707714064854,278.68,0.00021872,2]
[313776329,1707714065114,1727.03,0.0002315,90]
[313776330,1707714128219,152.55,0.00019965,2]
[313776331,1707714132691,182.42827529,0.00022,2]
[313776332,1707714136532,500.0,0.00022,2]
[313776333,1707714213772,209.0,0.00022151,2]
[313776334,1707714419902,-155.0,0.00022436,2]
[313776335,1707714419923,-155.0,0.00022437,2]
[313776336,1707714419944,-1047.19623077,0.00022437,2]
[313776337,1707714419964,-775.53574364,0.00022438,2]
[313776338,1707714419985,-150.0,0.00022459,2]
[313776339,1707714420006,-6863.0,0.0002246,2]
[313776340,1707714420028,-164.81515851,0.00022479,2]
[313776341,1707714420051,-153.04,0.00022513,2]
[313776342,1707714420072,-505.2273384,0.00022548,2]
[313776343,1707714420093,-169.42,0.00022552,2]
[313776344,1707714420115,-4544.08540956,0.00022576,2]
[313776345,1707714420136,-9365.08,0.00022576,2]
[313776346,1707714420158,-2538.614484,0.000226,2]
[313776347,1707714420179,-499.99,0.00022623,2]
[313776348,1707714420201,-164.81515849,0.0002269,2]
[313776349,1707714420223,-152.0,0.00022705,3]
[313776350,1707714420245,-153.04,0.00022742,2]
[313776351,1707714420266,-2466.48231101,0.0002278,2]
[313776352,1707714420288,-2520.7442326,0.000228,2]
[313776353,1707714420310,-152.55,0.00022832,2]
[313776354,1707714420331,-32938.6348,0.0002286,2]
[313776355,1707714420353,-160.98826032,0.0002286,2]
[313776356,1707714420377,-1006.81764519,0.00022867,2]
[313776357,1707714420401,-171.33520258,0.00022868,2]
[313776358,1707714420423,-5000.0,0.00022871,2]
[313776359,1707714420444,-534.32139902,0.00022871,2]
[313776360,1707714420464,-178.5936071,0.00022871,2]
[313776361,1707714420488,-3196.43639875,0.00022872,2]
[313776362,1707714420510,-273.27105282,0.00022898,2]
[313776363,1707714420531,-4315.96535336,0.00022898,2]
[313776364,1707714420551,-2005.41660398,0.00022898,2]
[313776365,1707714420571,-15280.95922078,0.000229,2]
[313776366,1707714420599,-3255.0446968,0.000229,2]
[313776367,1707714420623,-164.81515849,0.000229,2]
[313776368,1707714420646,-411.41,0.000229,2]
[313776369,1707714420667,-411.41,0.000229,2]
[313776370,1707714420691,-411.41,0.000229,2]
[313776371,1707714420711,-411.41,0.000229,2]
[313776372,1707714420732,-411.41,0.000229,2]
[313776373,1707714420753,-411.41,0.000229,2]
[313776374,1707714420775,-411.41,0.000229,2]
[313776375,1707714420796,-411.41,0.000229,2]
[313776376,1707714420818,-166.88,0.000229,2]
[313776377,1707714420840,-160.98826032,0.000229,2]
[313776378,1707714420860,-852.01386152,0.000229,2]
[313776379,1707714420881,-166.7899118,0.000229,4]
[313776380,1707714420902,-657.34408291,0.000229,2]
[313776381,1707714420925,-418.37,0.000229,2]
[313776382,1707714420946,-1253.0,0.00022945,2]
[313776383,1707714420968,-439.98,0.00022945,2]
[313776384,1707714420989,-905.165,0.00022945,2]
[313776385,1707714421010,-19827.0,0.00022945,2]
[313776386,1707714421032,-369.543,0.00022945,2]
[313776387,1707714421053,-433.829,0.00022945,2]
[313776388,1707714421074,-1865.146,0.00022945,2]
[313776389,1707714421096,-158014.43541728,0.00022956,2]
[313776390,1707714452993,153.04,0.00022181,2]
[313776391,1707714546003,489.19,0.00022002,2]
[313776392,1707714554996,182.35,0.00022002,2]
[313776393,1707714579060,152.55,0.00020089,2]
[313776394,1707714587042,232.23,0.00022008,2]
[313776401,1707714631727,-411.68315571,0.00022888,2]
[313776403,1707714631744,-48267.31684429,0.00022888,2]
[313776405,1707714631757,-775.53574364,0.00022897,2]
[313776406,1707714631769,-178.5936071,0.00022898,2]
[313776407,1707714631782,-568.00924102,0.00022898,2]
[313776408,1707714631794,-1336.94440266,0.000229,2]
[313776409,1707714631806,-182.18070188,0.000229,2]
[313776410,1707714631818,-438.22938862,0.000229,2]
[313776411,1707714631830,-166.7899118,0.000229,4]
[313776412,1707714631842,-313.30760719,0.00022946,2]
[313776413,1707714631854,-150.0,0.00022953,2]
[313776414,1707714631866,-157.9534938,0.00022954,2]
[313776415,1707714631878,-1044.78213691,0.00022954,2]
[313776416,1707714631891,-158.02824064,0.00022954,2]
[313776417,1707714631902,-150.37682814,0.00022955,3]
[313776418,1707714631914,-500.0,0.00022955,2]
[313776419,1707714631927,-500.0,0.00022955,2]
[313776420,1707714631938,-2516.09,0.00022955,2]
[313776421,1707714631950,-500.0,0.00022955,2]
[313776422,1707714631961,-826.49,0.00022955,2]
[313776423,1707714631972,-546.14,0.00022955,2]
[313776424,1707714631985,-2423.43010943,0.00022955,2]
[313776425,1707714632026,-1252.66989057,0.00022955,2]
[313776426,1707714632039,-964.67738511,0.00022955,2]
[313776427,1707714632066,-499.82864977,0.00022955,2]
[313776429,1707714632078,-1276.08396512,0.00022955,2]
[313776430,1707714632087,-1004.78,0.00022955,2]
[313776431,1707714632096,-500.0,0.00022955,2]
[313776432,1707714632105,-500.0,0.00022955,2]
[313776433,1707714632115,-583.24,0.00022955,2]
[313776434,1707714632124,-638.1,0.00022955,2]
[313776435,1707714632133,-2585.68,0.00022955,2]
[313776436,1707714632143,-500.0,0.00022955,2]
[313776437,1707714632152,-6820.62,0.00022955,2]
[313776438,1707714632162,-3043.19,0.00022955,2]
[313776439,1707714632171,-500.0,0.00022955,2]
[313776440,1707714632181,-611.47,0.00022955,2]
[313776441,1707714632190,-602.37,0.00022955,2]
[313776442,1707714632200,-1579.9,0.00022955,2]
[313776443,1707714632209,-533.8,0.00022955,2]
[313776444,1707714632218,-698.12,0.00022955,2]
[313776445,1707714632671,-500.0,0.00022955,2]
[313776446,1707714632693,-2604.07,0.00022955,2]
[313776447,1707714632703,-500.0,0.00022955,2]
[313776448,1707714632713,-747.19,0.00022955,2]
[313776449,1707714632722,-3943.53,0.00022955,2]
[313776450,1707714632732,-500.0,0.00022955,2]
[313776451,1707714632741,-1190.99,0.00022955,2]
[313776452,1707714632751,-543.86,0.00022955,2]
[313776453,1707714632761,-1448.48,0.00022955,2]
[313776454,1707714632771,-616.83,0.00022955,2]
[313776455,1707714632780,-195635.30905805,0.00022956,2]
[313776456,1707714632805,-327.01287504,0.00022956,2]
[313776457,1707714632816,-353.62981947,0.00022956,2]
[313776458,1707714632828,-1778.08920812,0.00022956,2]
[313776459,1707714632840,-394.61416969,0.00022956,2]
[313776460,1707714632860,-136297.98341641,0.00022956,2]
[313776461,1707714632885,-7600.81963993,0.00022956,2]
[313776475,1707714638400,-604.9,0.00022955,2]
[313776477,1707714638409,-370.79600171,0.00022955,2]
[313776480,1707714638649,-99523.66324132,0.00022956,2]
[313776481,1707714638751,-882.40616524,0.00022956,2]
[313776482,1707714638763,-6764.91429052,0.00022956,2]
[313776483,1707714641169,-880.96543955,0.00022857,2]
[313776484,1707714641178,-549.21832021,0.00022956,2]
[313776485,1707714641190,-1769.48740449,0.00022956,2]
[313776486,1707714641214,-751.02933199,0.00022956,2]
[313776501,1707714642864,-352.73851809,0.00022955,2]
[313776502,1707714643026,-147.26148191,0.00022955,2]
[313776503,1707714643036,-441.96450404,0.00022955,2]
[313776504,1707714643049,-58.03549596,0.00022955,2]
[313776505,1707714643058,-1297.18898302,0.00022956,2]
[313776506,1707714643135,-359347.22532047,0.00022956,2]
[313776507,1707714643148,-4045.77616562,0.00022956,2]
[313776510,1707714645728,891.83045524,0.00022002,2]
[313776511,1707714656593,-886.96,0.00022955,2]
[313776512,1707714656602,-263.54815705,0.00022955,2]
[313776513,1707714656611,-721.61367477,0.00022955,2]
[313776514,1707714656620,-87062.89388732,0.00022956,2]
[313776515,1707714656629,-7431.22540534,0.00022957,2]
[313776516,1707714657152,-851.08814916,0.00022957,2]
[313776517,1707714657180,-1078.48956501,0.00022955,2]
[313776518,1707714657190,-649.12552516,0.00022957,2]
[313776519,1707714657210,-256.46679908,0.00022957,2]
[313776520,1707714657227,-3962.09042165,0.00022957,2]
[313776521,1707714657239,-672.42672211,0.00022957,2]
[313776522,1707714657250,-1433.49229833,0.00022957,2]
[313776523,1707714657262,-1798.02947328,0.00022957,2]
[313776524,1707714657785,813.26737278,0.00022008,2]
[313776525,1707714658612,241.32020404,0.00022008,2]
[313776526,1707714659815,536.78853827,0.00022008,2]
[313776527,1707714659981,500.0,0.00022008,2]
[313776528,1707714660162,872.83146841,0.00022008,2]
[313776529,1707714661100,191.91206468,0.00022007,2]
[313776530,1707714663343,4268.54998927,0.00022007,2]
[313776531,1707714701701,500.0,0.00022007,2]
[313776532,1707714714997,876.98018431,0.00020026,2]
[313776533,1707714732981,876.98018431,0.00020026,2]
[313776534,1707714734274,869.67746725,0.00022007,2]
[313776535,1707714748246,869.67746725,0.00022007,2]
[313776536,1707714748738,-229.57746302,0.00022723,2]
[313776537,1707714748758,-475.81552691,0.00022724,2]
[313776538,1707714748779,-155.0,0.00022724,2]
[313776539,1707714748801,-248.02594869,0.00022724,2]
[313776540,1707714748822,-2605.5728343,0.00022724,2]
[313776541,1707714748841,-1210.04815651,0.00022725,2]
[313776542,1707714748861,-640.55153823,0.00022725,2]
[313776543,1707714748882,-585.33944638,0.00022726,2]
[313776544,1707714748902,-527.94521451,0.00022726,2]
[313776545,1707714748922,-775.53574364,0.00022727,2]
[313776546,1707714748942,-204.48055045,0.00022727,2]
[313776547,1707714748963,-239.70226079,0.00022728,2]
[313776548,1707714748983,-204.14941649,0.00022796,2]
[313776549,1707714749003,-155.0,0.00022797,2]
[313776550,1707714749023,-155.0,0.00022797,2]
[313776551,1707714749043,-155.0,0.00022798,2]
[313776552,1707714749062,-7173.14390489,0.000228,2]
[313776553,1707714749082,-161.19517606,0.000228,2]
[313776554,1707714749101,-1384.9053,0.000228,2]
[313776555,1707714749124,-4549.815,0.00022856,2]
[313776556,1707714749145,-2297.96,0.00022856,2]
[313776557,1707714749165,-500.0,0.00022856,2]
[313776558,1707714749187,-2877.31023556,0.00022906,2]
[313776559,1707714749206,-891.29626844,0.00022906,2]
[313776560,1707714749226,-292.15292574,0.00022906,2]
[313776561,1707714749248,-393.22096164,0.00022955,2]
[313776562,1707714749268,-155.67748766,0.00022955,2]
[313776563,1707714749289,-346.60715706,0.00022955,2]
[313776564,1707714749311,-33561.76485028,0.00022955,2]
[313776565,1707714749332,-3582.3616364,0.00022955,2]